bitfinex/quotes_BTCUSD_20240820
["timestamp","ask_amount","ask_price","bid_price","bid_amount"]
[1724165151484,0.61756819,59758.0,59757.0,0.682377]
[1724165151684,0.61756819,59758.0,59757.0,0.414626]
[1724165152203,0.61756819,59758.0,59757.0,0.401626]
[1724165152408,0.61756819,59758.0,59757.0,0.413626]
[1724165152557,0.61756819,59758.0,59757.0,0.145875]
[1724165152782,0.61756819,59758.0,59757.0,0.401626]
[1724165153147,0.61756819,59758.0,59757.0,0.413626]
[1724165153391,0.61756819,59758.0,59757.0,0.681377]
[1724165153640,0.61756819,59758.0,59757.0,0.012]
[1724165154823,1.41360145,59758.0,59757.0,0.012]
[1724165155035,1.95093617,59758.0,59757.0,0.012]
[1724165155242,1.68319017,59758.0,59757.0,0.012]
[1724165155649,0.133878,59756.0,59754.0,0.000823]
[1724165155901,0.69626733,59755.0,59754.0,0.000823]
[1724165156102,0.59985022,59755.0,59754.0,0.000823]
[1724165156301,0.59985022,59755.0,59754.0,0.134705]
[1724165156302,0.59566587,59755.0,59754.0,0.134705]
[1724165156476,0.59566587,59755.0,59754.0,0.000823]
[1724165156738,0.95916587,59755.0,59754.0,0.000823]
[1724165157813,0.43166289,59755.0,59754.0,0.134705]
[1724165158021,0.43166289,59755.0,59754.0,0.402469]
[1724165158227,0.43166289,59755.0,59754.0,0.670233]
[1724165158429,0.43166289,59755.0,59754.0,0.000823]
[1724165158629,0.43166289,59755.0,59754.0,0.134705]
[1724165158844,2.15080587,59755.0,59754.0,0.000823]
[1724165159249,2.15080587,59755.0,59754.0,0.006823]
[1724165159603,1.88304587,59755.0,59754.0,0.006823]
[1724165159965,1.88304587,59755.0,59754.0,0.000823]
[1724165159966,2.15080587,59755.0,59754.0,0.000823]
[1724165160203,2.16026923,59755.0,59754.0,0.000823]
[1724165160445,2.89408923,59755.0,59754.0,0.000823]
[1724165160640,2.99608923,59755.0,59754.0,0.000823]
[1724165160839,2.63058923,59755.0,59754.0,0.000823]
[1724165161055,2.90534923,59755.0,59754.0,0.000823]
[1724165161445,2.90534923,59755.0,59752.0,0.083023]
[1724165161446,1.519988,59753.0,59752.0,0.03134133]
[1724165161654,2.79175898,59753.0,59752.0,0.01347479]
[1724165162063,3.15525898,59753.0,59752.0,0.01347479]
[1724165162276,0.942268,59748.0,59733.0,5.712e-05]
[1724165162539,0.003,59736.0,59733.0,5.712e-05]
[1724165162735,2.18371498,59736.0,59733.0,5.712e-05]
[1724165163227,1.18333287,59736.0,59733.0,5.712e-05]
[1724165163655,1.45117787,59736.0,59733.0,5.712e-05]
[1724165163881,3.08150165,59736.0,59733.0,5.712e-05]
[1724165164097,2.92610037,59736.0,59733.0,5.712e-05]
[1724165164340,2.92210037,59736.0,59733.0,5.712e-05]
[1724165164543,2.92610037,59736.0,59733.0,5.712e-05]
[1724165165440,2.92210037,59736.0,59733.0,5.712e-05]
[1724165165663,2.19110037,59736.0,59733.0,5.712e-05]
[1724165166075,2.19110037,59736.0,59735.0,0.001824]
[1724165166076,0.62056289,59736.0,59735.0,0.001824]
[1724165166297,0.43786289,59736.0,59735.0,0.001824]
[1724165166491,0.04046289,59736.0,59735.0,0.403597]
[1724165166719,0.03746289,59736.0,59735.0,0.870046]
[1724165167132,0.03746289,59736.0,59735.0,1.81349798]
[1724165167133,0.04046289,59736.0,59735.0,1.81349798]
[1724165167338,0.04046289,59736.0,59735.0,2.08334698]
[1724165167758,0.04046289,59736.0,59735.0,1.54464898]
[1724165167962,0.04046289,59736.0,59735.0,0.135748]
[1724165168185,0.04046289,59736.0,59735.0,0.001824]
[1724165168407,0.44854803,59736.0,59735.0,0.001824]
[1724165168609,0.44554803,59736.0,59735.0,0.000824]
[1724165168823,0.44554803,59736.0,59735.0,0.012824]
[1724165169275,0.03746289,59736.0,59735.0,0.012824]
[1724165169500,0.03746289,59736.0,59735.0,0.402597]
[1724165169698,0.03746289,59736.0,59735.0,0.007824]
[1724165169904,0.03746289,59736.0,59735.0,0.012824]
[1724165170426,0.03746289,59736.0,59735.0,0.414597]
[1724165170860,0.03746289,59736.0,59735.0,0.146748]
[1724165171064,0.03746289,59736.0,59735.0,0.682446]
[1724165171670,0.03746289,59736.0,59735.0,0.146748]
[1724165172316,0.03746289,59736.0,59735.0,0.012824]
[1724165172317,0.63606289,59736.0,59735.0,0.012824]
[1724165173267,1.29748787,59736.0,59735.0,0.012824]
[1724165173496,1.56533287,59736.0,59735.0,0.012824]
[1724165174076,1.83317787,59736.0,59735.0,0.012824]
[1724165174285,2.56617787,59736.0,59735.0,0.012824]
[1724165174551,1.83317787,59736.0,59735.0,0.012824]
[1724165174715,1.83317787,59736.0,59735.0,0.005824]
[1724165175245,1.83317787,59736.0,59735.0,0.002824]
[1724165175449,1.29848787,59736.0,59735.0,0.002824]
[1724165175621,1.56633287,59736.0,59735.0,0.000824]
[1724165176072,1.84417787,59736.0,59735.0,0.002824]
[1724165176317,1.83717787,59736.0,59735.0,0.001824]
[1724165176692,1.84317787,59736.0,59735.0,0.002824]
[1724165177284,1.57533287,59736.0,59735.0,0.002824]
[1724165177575,1.56933287,59736.0,59735.0,0.001824]
[1724165177773,1.83717787,59736.0,59735.0,0.001824]
[1724165178000,1.56933287,59736.0,59735.0,0.001824]
[1724165178465,1.86327249,59736.0,59735.0,0.000824]
[1724165178616,1.56533287,59736.0,59735.0,0.000824]
[1724165178791,1.56933287,59736.0,59735.0,0.000824]
[1724165179192,1.57533287,59736.0,59735.0,0.001824]
[1724165180078,2.46317787,59736.0,59735.0,0.001824]
[1724165180284,2.64161143,59736.0,59735.0,0.001824]
[1724165180480,2.83102287,59736.0,59735.0,0.001824]
[1724165180692,2.56317787,59736.0,59735.0,0.001824]
[1724165181109,1.94317787,59736.0,59735.0,0.001824]
[1724165181253,1.57533287,59736.0,59735.0,0.001824]
[1724165182036,1.84317787,59736.0,59735.0,0.001824]
[1724165183071,1.84417787,59736.0,59735.0,0.001824]
[1724165183372,2.68602287,59736.0,59735.0,0.001824]
[1724165183575,2.78602287,59736.0,59735.0,0.001824]
[1724165184567,3.05386787,59736.0,59735.0,0.001824]
[1724165184768,1.521289,59734.0,59733.0,5.712e-05]
[1724165184968,2.87314598,59734.0,59733.0,5.712e-05]
[1724165185799,0.937692,59721.0,59709.0,0.000824]
[1724165186018,1.68509498,59721.0,59709.0,0.000824]
[1724165186450,1.72104612,59721.0,59709.0,0.000824]
[1724165186656,2.2550249,59721.0,59709.0,0.000824]
[1724165186857,1.18522212,59721.0,59710.0,0.13398]
[1724165187059,1.18522212,59721.0,59709.0,0.134806]
[1724165187267,2.51754612,59721.0,59709.0,0.000824]
[1724165187472,2.51954612,59721.0,59720.0,0.00114637]
[1724165187760,2.51754612,59721.0,59720.0,0.00114637]
[1724165187967,2.57809667,59721.0,59720.0,0.00114637]
[1724165188366,2.53128562,59721.0,59720.0,0.00114637]
[1724165188772,2.52828562,59721.0,59720.0,0.00014637]
[1724165189176,2.53828562,59721.0,59720.0,0.00014637]
[1724165189376,0.003,59716.0,59709.0,0.000824]
[1724165189746,2.15228698,59712.0,59711.0,0.00597867]
[1724165189895,2.24033498,59712.0,59711.0,0.00597867]
[1724165190097,1.98033498,59712.0,59711.0,0.00597867]
[1724165190624,2.01628612,59712.0,59711.0,0.00597867]
[1724165191872,1.07745412,59712.0,59711.0,0.00597867]
[1724165192076,0.21295412,59712.0,59711.0,0.00697867]
[1724165192478,0.19995412,59712.0,59711.0,0.00597867]
[1724165192697,0.03595114,59712.0,59711.0,0.00597867]
[1724165192957,0.05695114,59712.0,59711.0,0.00697867]
[1724165193140,0.04395114,59712.0,59711.0,0.00597867]
[1724165193358,0.04395114,59712.0,59711.0,0.00780167]
[1724165193359,0.76063369,59712.0,59711.0,0.00780167]
[1724165193496,2.0961968,59712.0,59711.0,0.00780167]
[1724165193702,2.34637323,59712.0,59711.0,0.00680167]
[1724165193929,2.34937323,59712.0,59711.0,0.00680167]
[1724165194303,2.35137323,59712.0,59711.0,0.00680167]
[1724165194722,2.35986491,59712.0,59711.0,0.00680167]
[1724165194950,1.329163,59710.0,59709.0,0.000824]
[1724165195162,2.41112698,59710.0,59709.0,0.000824]
[1724165195360,2.44707812,59710.0,59709.0,0.000824]
[1724165195560,2.17411712,59710.0,59709.0,0.000824]
[1724165196158,0.33393412,59710.0,59709.0,0.001824]
[1724165196359,0.34693412,59710.0,59709.0,0.001824]
[1724165196760,0.35593412,59710.0,59709.0,0.001824]
[1724165196960,0.62389512,59710.0,59709.0,0.000824]
[1724165197206,0.61089512,59710.0,59709.0,0.000824]
[1724165197788,0.04495114,59710.0,59709.0,0.000824]
[1724165197992,0.03595114,59710.0,59709.0,0.000824]
[1724165198194,0.03595114,59710.0,59709.0,0.134807]
[1724165198400,0.03895114,59710.0,59709.0,0.000824]
[1724165198601,0.04595114,59710.0,59709.0,0.001824]
[1724165199068,0.47491512,59710.0,59709.0,0.001824]
[1724165199271,0.76063412,59710.0,59709.0,0.001824]
[1724165199888,0.21095412,59710.0,59709.0,0.001824]
[1724165200102,0.19995412,59710.0,59709.0,0.000824]
[1724165200293,0.33812156,59710.0,59709.0,0.000824]
[1724165200628,1.27274356,59710.0,59709.0,0.000824]
[1724165200855,1.27874356,59710.0,59709.0,0.001824]
[1724165201081,3.12740037,59710.0,59709.0,0.001824]
[1724165201483,3.12940037,59710.0,59709.0,0.001824]
[1724165201886,3.12940037,59710.0,59699.0,0.00823]
[1724165201887,1.620727,59700.0,59699.0,0.00823]
[1724165202059,2.52192398,59700.0,59699.0,0.00823]
[1724165202273,2.52092398,59700.0,59699.0,0.00823]
[1724165202632,1.57886912,59700.0,59699.0,0.00823]
[1724165202832,1.37966912,59700.0,59699.0,0.00823]
[1724165203198,1.37966912,59700.0,59689.0,8.372e-05]
[1724165203199,0.1883,59699.0,59689.0,8.372e-05]
[1724165203401,1.180276,59690.0,59689.0,8.372e-05]
[1724165203578,1.61232998,59690.0,59689.0,8.372e-05]
[1724165204188,1.34427898,59690.0,59689.0,8.372e-05]
[1724165204403,0.32525114,59699.0,59689.0,8.372e-05]
[1724165204404,0.7782,59697.0,59689.0,8.372e-05]
[1724165204653,0.134015,59695.0,59689.0,8.372e-05]
[1724165204796,0.16819165,59696.0,59689.0,8.372e-05]
[1724165204797,0.16400298,59694.0,59689.0,8.372e-05]
[1724165205016,0.30220965,59694.0,59689.0,8.372e-05]
[1724165205215,0.43622665,59694.0,59689.0,8.372e-05]
[1724165205490,0.16819165,59694.0,59689.0,8.372e-05]
[1724165205698,0.002,59690.0,59689.0,8.372e-05]
[1724165205916,0.00618867,59690.0,59689.0,8.372e-05]
[1724165206068,0.00418867,59690.0,59689.0,0.00108372]
[1724165206323,0.13820767,59693.0,59689.0,0.00108372]
[1724165206520,0.29802398,59692.0,59689.0,8.372e-05]
[1724165206662,0.00418867,59691.0,59689.0,0.00108372]
[1724165206874,0.56607898,59690.0,59689.0,0.00108372]
[1724165207075,0.56607898,59690.0,59689.0,8.372e-05]
[1724165207076,0.83412998,59690.0,59689.0,8.372e-05]
[1724165207296,0.56607898,59690.0,59689.0,8.372e-05]
[1724165207502,0.87508112,59690.0,59689.0,8.372e-05]
[1724165207917,0.87208112,59690.0,59689.0,8.372e-05]
[1724165208158,0.96753012,59690.0,59689.0,8.372e-05]
[1724165208304,0.20195412,59690.0,59689.0,8.372e-05]
[1724165208505,0.19995412,59690.0,59689.0,8.372e-05]
[1724165208707,0.19995412,59690.0,59689.0,1.08162372]
[1724165208708,0.03695114,59690.0,59689.0,1.08162372]
[1724165208935,0.03695114,59690.0,59689.0,1.54217972]
[1724165209135,0.03695114,59690.0,59689.0,1.27412372]
[1724165210127,0.03695114,59690.0,59689.0,1.27512372]
[1724165210128,0.04295114,59690.0,59689.0,1.27512372]
[1724165210511,0.03695114,59690.0,59689.0,1.54217972]
[1724165210721,0.03595114,59690.0,59689.0,1.4441267]
[1724165210954,0.03695114,59690.0,59689.0,1.7121827]
[1724165211151,0.03695114,59690.0,59689.0,1.7061827]
[1724165211440,0.03695114,59690.0,59689.0,1.7121827]
[1724165211441,0.03795114,59690.0,59689.0,1.7121827]
[1724165211644,0.03695114,59690.0,59689.0,1.7061827]
[1724165211901,0.03595114,59693.0,59689.0,0.1680867]
[1724165212109,0.17456098,59735.0,59711.0,0.133978]
[1724165212110,0.49229154,59714.0,59711.0,0.133978]
[1724165212339,0.49229154,59714.0,59711.0,0.401935]
[1724165212340,0.0625358,59712.0,59711.0,0.401935]
[1724165212747,0.0625358,59712.0,59711.0,0.133978]
[1724165212949,0.0625358,59712.0,59711.0,0.401935]
[1724165213354,0.0625358,59712.0,59711.0,0.669892]
[1724165213799,0.0625358,59712.0,59711.0,0.401935]
[1724165214220,0.0625358,59712.0,59711.0,0.669892]
[1724165214426,0.0645358,59712.0,59711.0,0.682892]
[1724165214819,0.0625358,59712.0,59711.0,0.669892]
[1724165215030,0.0625358,59712.0,59711.0,0.677892]
[1724165215215,0.0645358,59712.0,59711.0,0.950849]
[1724165215413,0.0635358,59712.0,59711.0,0.942849]
[1724165215627,0.0625358,59712.0,59711.0,0.937849]
[1724165216056,0.0635358,59712.0,59711.0,0.943849]
[1724165216592,0.0635358,59712.0,59711.0,0.675892]
[1724165216792,0.0645358,59712.0,59711.0,0.683892]
[1724165217215,0.0635358,59712.0,59711.0,0.675892]
[1724165217442,0.0635358,59712.0,59711.0,0.677892]
[1724165217838,0.0635358,59712.0,59711.0,0.674892]
[1724165218045,0.0645358,59712.0,59711.0,0.950849]
[1724165218418,0.0635358,59712.0,59711.0,0.942849]
[1724165218639,0.0645358,59712.0,59711.0,0.950849]
[1724165219242,0.0645358,59712.0,59711.0,1.78720898]
[1724165219579,0.0645358,59712.0,59711.0,2.08140898]
[1724165219699,0.0645358,59712.0,59711.0,2.08040898]
[1724165220655,0.0625358,59712.0,59711.0,2.06740898]
[1724165220936,0.0625358,59712.0,59711.0,2.08140898]
[1724165220937,0.0645358,59712.0,59711.0,2.08140898]
[1724165221183,0.0645358,59712.0,59711.0,2.08340898]
[1724165221602,0.0645358,59712.0,59711.0,2.08240898]
[1724165221913,0.0645358,59712.0,59711.0,2.35136598]
[1724165222095,0.0645358,59712.0,59711.0,2.08340898]
[1724165222298,0.0645358,59712.0,59711.0,2.08040898]
[1724165222855,0.0645358,59712.0,59711.0,1.548449]
[1724165223057,0.0645358,59712.0,59711.0,1.145049]
[1724165223294,0.0645358,59712.0,59711.0,0.950849]
[1724165223492,0.0635358,59712.0,59711.0,0.942849]
[1724165223698,0.0625358,59712.0,59711.0,0.937849]
[1724165223868,0.0625358,59712.0,59711.0,0.965849]
[1724165224070,0.0625358,59712.0,59711.0,0.951849]
[1724165224749,0.0625358,59712.0,59711.0,1.38380898]
[1724165224871,0.0625358,59712.0,59711.0,2.25496598]
[1724165225075,0.0625358,59712.0,59711.0,2.08200898]
[1724165225282,0.0625358,59712.0,59711.0,2.09600898]
[1724165225490,0.0625358,59712.0,59711.0,2.09900898]
[1724165225876,0.0625358,59712.0,59711.0,2.09600898]
[1724165226077,0.0625358,59712.0,59711.0,1.932006]
[1724165226308,0.0625358,59712.0,59711.0,0.529935]
[1724165226506,0.0625358,59712.0,59711.0,0.415935]
[1724165226707,0.0625358,59712.0,59711.0,1.249892]
[1724165226909,0.0625358,59712.0,59711.0,1.531849]
[1724165227138,0.0625358,59712.0,59711.0,0.669892]
[1724165227367,0.0625358,59712.0,59711.0,0.401935]
[1724165227531,0.0625358,59712.0,59711.0,0.429935]
[1724165227743,0.0625358,59712.0,59711.0,0.415935]
[1724165227940,0.0625358,59712.0,59711.0,0.683892]
[1724165228598,0.0625358,59712.0,59711.0,0.697892]
[1724165229013,0.0625358,59712.0,59711.0,0.965849]
[1724165229774,0.0625358,59712.0,59711.0,1.358049]
[1724165229984,0.0625358,59712.0,59711.0,1.80400898]
[1724165230182,0.0625358,59712.0,59711.0,1.90400898]
[1724165230396,0.0625358,59712.0,59711.0,1.91565024]
[1724165230808,0.0625358,59712.0,59711.0,1.63605198]
[1724165231016,0.0625358,59712.0,59711.0,1.89300898]
[1724165231207,0.0625358,59712.0,59711.0,2.06270898]
[1724165231596,0.0625358,59712.0,59711.0,2.07670898]
[1724165231742,0.0625358,59712.0,59711.0,1.77775198]
[1724165232373,0.0625358,59712.0,59711.0,1.77875198]
[1724165232668,0.0625358,59712.0,59711.0,2.04970898]
[1724165233024,0.0625358,59712.0,59711.0,2.05070898]
[1724165233231,0.0625358,59712.0,59711.0,2.06370898]
[1724165233446,0.0625358,59712.0,59711.0,2.07670898]
[1724165233594,0.0625358,59712.0,59711.0,1.77775198]
[1724165234004,0.0625358,59712.0,59711.0,1.80575198]
[1724165234177,0.0625358,59712.0,59711.0,1.80675198]
[1724165234381,0.0625358,59712.0,59711.0,1.77875198]
[1724165234603,0.0625358,59712.0,59711.0,1.78275198]
[1724165234781,0.0625358,59712.0,59711.0,1.065849]
[1724165235052,0.0625358,59712.0,59711.0,0.147978]
[1724165235266,0.0625358,59712.0,59711.0,0.014]
[1724165235668,0.4419358,59712.0,59711.0,0.014]
[1724165236118,0.5759118,59712.0,59711.0,0.014]
[1724165236333,0.3776,59711.0,59701.0,0.134]
[1724165236578,0.3776,59707.0,59699.0,0.268008]
[1724165236812,0.3776,59707.0,59702.0,0.267995]
[1724165237026,0.4392305,59707.0,59705.0,0.133991]
[1724165237230,0.4392305,59707.0,59703.0,0.133994]
[1724165237461,0.4392305,59707.0,59691.0,0.199]
[1724165237462,0.1681905,59706.0,59694.0,0.134016]
[1724165237680,0.1681905,59706.0,59685.0,0.268073]
[1724165237681,0.268008,59700.0,59685.0,0.268073]
[1724165237892,0.3782,59696.0,59685.0,0.268073]
[1724165238097,0.3782,59696.0,59689.0,0.13493472]
[1724165238098,0.00418847,59695.0,59689.0,0.13493472]
[1724165238334,0.00418847,59695.0,59689.0,0.00090772]
[1724165238525,0.87091998,59694.0,59689.0,0.00090772]
[1724165238729,0.0041887,59693.0,59689.0,0.00090772]
[1724165238965,0.134025,59690.0,59689.0,0.00090772]
[1724165239173,0.16819206,59690.0,59689.0,0.00090772]
[1724165239386,0.3782,59691.0,59689.0,0.00090772]
[1724165240018,0.4398305,59691.0,59690.0,0.134025]
[1724165240493,0.4398305,59691.0,59689.0,0.00890772]
[1724165240911,0.4398305,59691.0,59690.0,0.134025]
[1724165241117,0.4298305,59691.0,59690.0,0.134025]
[1724165241561,0.4298305,59691.0,59690.0,0.402076]
[1724165241767,0.4298305,59691.0,59690.0,0.674127]
[1724165241984,0.4298305,59691.0,59690.0,0.406076]
[1724165242199,0.4298305,59691.0,59690.0,0.138025]
[1724165242403,0.4298305,59691.0,59690.0,0.004]
[1724165243698,0.4298305,59691.0,59690.0,0.402076]
[1724165243911,0.4298305,59691.0,59690.0,1.206229]
[1724165243912,0.0616305,59691.0,59690.0,1.206229]
[1724165244142,0.0616305,59691.0,59690.0,1.47023198]
[1724165244343,0.0616305,59691.0,59690.0,1.20218098]
[1724165244554,0.0616305,59691.0,59690.0,1.20318098]
[1724165244768,0.0616305,59691.0,59690.0,1.20618098]
[1724165245188,0.06083382,59691.0,59690.0,1.20618098]
[1724165245861,0.06083382,59691.0,59690.0,1.22018098]
[1724165246088,0.06083382,59691.0,59690.0,1.48823198]
[1724165246300,0.06083382,59691.0,59690.0,1.48723198]
[1724165246513,0.06083382,59691.0,59690.0,1.48923198]
[1724165246776,1e-08,59691.0,59690.0,1.88253198]
[1724165247183,1e-08,59691.0,59690.0,1.85453198]
[1724165247402,1e-08,59691.0,59690.0,1.86853198]
[1724165247604,1e-08,59691.0,59690.0,1.88253198]
[1724165247807,1e-08,59691.0,59690.0,1.86853198]
[1724165248034,1e-08,59691.0,59690.0,1.85453198]
[1724165248237,1e-08,59691.0,59690.0,1.88253198]
[1724165249207,1e-08,59691.0,59690.0,2.15058298]
[1724165249409,1e-08,59691.0,59690.0,1.88253198]
[1724165249834,1e-08,59691.0,59690.0,3.74193398]
[1724165250015,1e-08,59691.0,59690.0,3.18000369]
[1724165250216,1e-08,59691.0,59690.0,3.20493895]
[1724165250418,1e-08,59691.0,59690.0,3.21392866]
[1724165250795,1e-08,59691.0,59690.0,3.08618765]
[1724165250996,1e-08,59691.0,59690.0,4.06592866]
[1724165251224,0.4017,59719.0,59711.0,0.937849]
[1724165251598,0.4017,59719.0,59711.0,0.938849]
[1724165252078,0.4017,59719.0,59711.0,0.937849]
[1724165252491,0.5585,59732.0,59711.0,1.88850898]
[1724165252637,0.5585,59732.0,59711.0,2.08730898]
[1724165252638,0.3784,59732.0,59711.0,2.08730898]
[1724165252840,0.3784,59732.0,59711.0,2.36420797]
[1724165253038,0.3784,59732.0,59711.0,2.41413589]
[1724165253333,0.00418566,59731.0,59711.0,2.36420797]
[1724165253542,0.3784,59732.0,59711.0,2.45113898]
[1724165253751,0.50287374,59735.0,59711.0,3.61405685]
[1724165253752,3e-07,59712.0,59711.0,3.61405685]
[1724165253992,0.50287374,59735.0,59734.0,1.205343]
[1724165254298,0.50287374,59735.0,59734.0,2.05494598]
[1724165254462,0.50287374,59735.0,59734.0,3.08656166]
[1724165254463,2e-07,59735.0,59734.0,3.08656166]
[1724165254607,5e-07,59736.0,59735.0,1.21032]
[1724165254814,0.0009053,59755.0,59753.0,0.003]
[1724165255019,0.0009053,59755.0,59753.0,1.51909098]
[1724165255225,1e-08,59754.0,59753.0,2.97403009]
[1724165255429,3.1e-07,59755.0,59754.0,1.83706604]
[1724165255584,0.0009053,59760.0,59754.0,1.83706604]
[1724165255585,0.0009053,59760.0,59757.0,1.355628]
[1724165255788,0.0009053,59760.0,59757.0,3.02448563]
[1724165255997,0.0009053,59760.0,59757.0,3.37478223]
[1724165256424,0.00906401,59768.0,59767.0,1.019771]
[1724165256625,0.00906401,59768.0,59767.0,1.32422838]
[1724165256850,0.00906401,59768.0,59767.0,1.27877398]
[1724165257057,0.00906401,59768.0,59767.0,0.769265]
[1724165257265,0.41316401,59768.0,59767.0,0.501559]
[1724165257464,0.41316401,59768.0,59767.0,0.133853]
[1724165257664,0.41316401,59768.0,59767.0,0.014]
[1724165257886,0.41316401,59768.0,59767.0,0.147853]
[1724165258111,0.00906401,59768.0,59767.0,0.83326798]
[1724165258461,0.00906401,59768.0,59767.0,1.66797998]
[1724165258670,0.00906401,59768.0,59767.0,1.66597998]
[1724165258875,0.00906401,59768.0,59767.0,1.65697998]
[1724165259246,0.00906401,59768.0,59767.0,1.67297998]
[1724165259448,0.00906401,59768.0,59767.0,1.73643438]
[1724165259655,0.00906401,59768.0,59767.0,2.00414038]
[1724165259859,0.00906401,59768.0,59767.0,3.20943603]
[1724165260104,0.0002,59779.0,59771.0,1.677284]
[1724165260279,0.0002,59779.0,59771.0,3.12068698]
[1724165260497,0.50136655,59792.0,59783.0,0.406451]
[1724165260839,0.00907501,59792.0,59791.0,1.063495]
[1724165261036,0.00907501,59792.0,59791.0,3.07898963]
[1724165261259,0.00907501,59792.0,59791.0,3.44658763]
[1724165261455,0.00907501,59792.0,59791.0,3.49271571]
[1724165261907,0.00907501,59792.0,59791.0,4.36171683]
[1724165262109,0.00907501,59792.0,59791.0,4.37571683]
[1724165262317,1e-08,59792.0,59791.0,4.64331483]
[1724165262528,1e-06,59796.0,59795.0,1.47669]
[1724165262728,0.00907501,59810.0,59795.0,1.47669]
[1724165262729,0.49229154,59807.0,59803.0,1.003017]
[1724165262995,0.49229154,59807.0,59803.0,2.91835063]
[1724165263266,0.00907501,59810.0,59803.0,2.9603028]
[1724165263520,0.00907501,59811.0,59803.0,2.9603028]
[1724165263521,2e-08,59811.0,59810.0,0.138756]
[1724165263797,2e-08,59811.0,59810.0,2.81483213]
[1724165264067,2e-08,59811.0,59810.0,3.72831963]
[1724165264326,2e-08,59811.0,59810.0,3.76899056]
[1724165264628,0.005,59838.0,59831.0,0.935966]
[1724165265199,0.005,59838.0,59837.0,0.668482]
[1724165265439,0.005,59838.0,59837.0,1.36827098]
[1724165265699,0.005,59838.0,59837.0,1.51327599]
[1724165266426,0.005,59838.0,59837.0,1.80566899]
[1724165266660,0.005,59838.0,59837.0,2.64536464]
[1724165267209,0.005,59838.0,59837.0,2.63136464]
[1724165267491,0.005,59838.0,59837.0,2.29596663]
[1724165267762,0.4153,59853.0,59852.0,0.400989]
[1724165267996,0.4153,59853.0,59843.0,0.1]
[1724165268268,0.4153,59853.0,59837.0,0.114]
[1724165268269,0.4153,59853.0,59848.0,0.267342]
[1724165268540,0.4153,59853.0,59852.0,0.400989]
[1724165269009,0.4153,59853.0,59852.0,0.668315]
[1724165269260,0.4153,59853.0,59852.0,0.133663]
[1724165269503,0.4153,59853.0,59838.0,0.1]
[1724165269741,0.4153,59853.0,59852.0,0.400989]
[1724165270008,0.4153,59853.0,59852.0,0.668315]
[1724165270254,0.4153,59853.0,59852.0,0.935641]
[1724165270740,0.4153,59853.0,59852.0,0.668315]
[1724165271236,0.4153,59853.0,59852.0,0.414989]
[1724165271505,0.4153,59853.0,59852.0,0.133663]
[1724165271737,0.42321664,59853.0,59852.0,0.682315]
[1724165272024,0.00791664,59853.0,59852.0,1.049641]
[1724165272315,0.38784277,59853.0,59852.0,1.049641]
[1724165272571,0.33234626,59853.0,59852.0,0.682315]
[1724165273075,0.33234626,59853.0,59852.0,0.414989]
[1724165273330,0.14135599,59853.0,59852.0,0.147663]
[1724165273903,0.14135599,59853.0,59838.0,0.267388]
[1724165274184,0.14135599,59853.0,59852.0,0.014]
[1724165274442,0.0105822,59854.0,59849.0,0.267338]
[1724165274443,0.0105822,59854.0,59853.0,0.400981]
[1724165274756,0.0105822,59854.0,59853.0,0.13366]
[1724165275046,0.17458518,59854.0,59846.0,0.133675]
[1724165275291,0.17458518,59854.0,59837.0,0.1]
[1724165275292,0.16400298,59853.0,59852.0,0.133663]
[1724165275557,0.133663,59852.0,59837.0,0.1]
[1724165275805,0.16400298,59851.0,59845.0,0.133676]
[1724165276092,0.16400298,59851.0,59850.0,0.668337]
[1724165276323,0.75190298,59851.0,59850.0,0.401002]
[1724165276576,0.5879,59851.0,59850.0,0.668337]
[1724165276854,0.5879,59851.0,59850.0,1.035672]
[1724165277360,0.5879,59851.0,59850.0,0.768337]
[1724165277838,0.4023,59851.0,59850.0,0.768337]
[1724165278067,0.4023,59851.0,59850.0,1.035672]
[1724165278769,0.0105822,59854.0,59850.0,1.035672]
[1724165278770,0.01148641,59854.0,59853.0,0.935623]
[1724165280013,0.01148641,59854.0,59853.0,1.036623]
[1724165280247,0.01148641,59854.0,59853.0,1.46794698]
[1724165280488,0.0118648,59856.0,59855.0,1.203904]
[1724165280750,0.0118648,59856.0,59855.0,1.035592]
[1724165280986,0.0118648,59856.0,59855.0,1.302904]
[1724165281500,0.0118648,59856.0,59855.0,1.303904]
[1724165281764,0.0118648,59856.0,59855.0,1.73521898]
[1724165282022,0.0118648,59856.0,59855.0,2.11831898]
[1724165282266,0.0118648,59856.0,59855.0,1.302904]
[1724165282509,0.3952,59869.0,59868.0,0.668135]
[1724165282835,0.3999,59868.0,59860.0,0.133644]
[1724165282978,0.1865,59867.0,59839.0,0.001]
[1724165283260,0.3999,59866.0,59855.0,0.014]
[1724165283505,0.3999,59866.0,59837.0,0.000822]
[1724165283506,0.3999,59866.0,59852.0,0.267326]
[1724165283708,0.3999,59864.0,59837.0,0.000822]
[1724165283916,0.3999,59861.0,59839.0,0.001]
[1724165284133,0.16400298,59860.0,59854.0,0.267314]
[1724165284349,0.3999,59859.0,59855.0,0.133654]
[1724165284568,0.3999,59857.0,59851.0,0.267328]
[1724165284776,0.024,59865.0,59855.0,0.014]
[1724165284777,0.75040298,59856.0,59855.0,0.014]
[1724165284985,0.5864,59856.0,59855.0,0.414968]
[1724165285190,0.5864,59856.0,59855.0,0.66828]
[1724165285400,0.5864,59856.0,59855.0,0.935592]
[1724165285608,0.3999,59856.0,59855.0,0.935592]
[1724165285822,0.0002,59879.0,59860.0,0.267287]
[1724165285823,0.3926,59874.0,59860.0,0.267287]
[1724165286031,0.55660298,59874.0,59873.0,0.400848]
[1724165286471,0.3927,59872.0,59854.0,0.267316]
[1724165286656,0.3927,59872.0,59865.0,0.267267]
[1724165287124,0.3927,59872.0,59866.0,0.267262]
[1724165287367,0.3927,59872.0,59871.0,0.13362]
[1724165287868,0.3927,59872.0,59871.0,0.668102]
[1724165288121,0.3927,59872.0,59871.0,1.035343]
[1724165288569,0.3927,59872.0,59871.0,0.768102]
[1724165288822,0.3927,59872.0,59851.0,0.461026]
[1724165288823,0.4059,59871.0,59855.0,0.001]
[1724165289070,0.4059,59871.0,59870.0,0.400867]
[1724165289318,0.4059,59871.0,59853.0,0.1]
[1724165289319,0.4059,59868.0,59853.0,0.1]
[1724165289553,0.4059,59868.0,59867.0,0.133629]
[1724165289785,0.4059,59868.0,59867.0,0.400888]
[1724165290021,0.4059,59868.0,59867.0,0.133629]
[1724165290291,0.4059,59868.0,59865.0,0.267265]
[1724165290473,0.4059,59868.0,59867.0,0.133629]